fUST/lending_fUST_20251228
["ID","MTS","AMOUNT","RATE_DAILY","PERIOD"]
[399940543,1766908231573,-153.68,0.000144,2]
[399940545,1766908231582,-153.68,0.00015,2]
[399940547,1766908231591,-104.41191859,0.000156,2]
[399940554,1766908231655,-49.26808141,0.000156,2]
[399940556,1766908231664,-177.62308857,0.000161,2]
[399940558,1766908231674,-153.68,0.000162,2]
[399940560,1766908231686,-153.68,0.000168,2]
[399940562,1766908231695,-30.04551133,0.000174,2]
[399940767,1766908240218,-123.63448867,0.000174,2]
[399940768,1766908240228,-153.68,0.00018,2]
[399940769,1766908240239,-8631.8133609,0.00018086,2]
[399940770,1766908240249,-204.71813597,0.000181,2]
[399940771,1766908240259,-1000.0,0.00018377,2]
[399940772,1766908240269,-1112.14914557,0.00018575,2]
[399940773,1766908240279,-153.68,0.000186,2]
[399940774,1766908240290,-600.54316388,0.00018667,2]
[399940775,1766908240299,-500.0,0.00018667,2]
[399940776,1766908240308,-500.0,0.00018667,2]
[399940777,1766908240318,-500.0,0.00018667,2]
[399940778,1766908240328,-500.0,0.00018667,2]
[399940779,1766908240338,-500.0,0.00018667,2]
[399940780,1766908240347,-604.23507935,0.00018667,2]
[399940781,1766908240357,-555.15885829,0.00018667,2]
[399940782,1766908240368,-202.1683885,0.00018667,2]
[399940783,1766908240378,-500.0,0.00018667,2]
[399940784,1766908240389,-552.68549811,0.00018667,2]
[399940798,1766908245797,-67.96117307,0.00018667,2]
[399940799,1766908245809,-502.8811236,0.00018667,2]
[399940800,1766908245819,-500.0,0.00018667,2]
[399940801,1766908245830,-500.0,0.00018667,2]
[399940802,1766908245843,-552.13566223,0.00018667,2]
[399940803,1766908245854,-500.0,0.00018667,2]
[399940804,1766908245864,-472.52750413,0.00018667,2]
[399940806,1766908701881,-150.0,0.000137,2]
[399940807,1766908701907,-1850.0,0.00014,2]
[399940808,1766908707643,-1150.0,0.00014,2]
[399940809,1766908746311,-153.44,0.000132,2]
[399940810,1766908746338,-153.44,0.000142,2]
[399940812,1766908814939,-153.45,0.000132,2]
[399940814,1766908888095,-153.44,0.000132,2]
[399940815,1766908888118,-150.0,0.0001375,2]
[399940816,1766908888141,-153.44,0.000143,2]
[399940817,1766908943482,-155.87,0.000132,2]
[399940818,1766908951152,200.0,0.00027379,120]
[399940819,1766909013826,-153.6,0.000132,2]
[399940820,1766909013851,-153.6,0.000144,2]
[399940840,1766909070828,200.0,0.00023959,120]
[399940841,1766909074132,-155.3,0.000132,2]
[399940842,1766909131790,200.0,0.00025494,120]
[399940843,1766909134306,-153.72,0.000132,2]
[399940844,1766909134326,-153.72,0.000145,2]
[399940845,1766909134356,-177.0,0.0001575,2]
[399940846,1766909134383,-153.72,0.000158,2]
[399940847,1766909134411,-153.72,0.000171,2]
[399940848,1766909134432,-204.0,0.0001775,2]
[399940849,1766909134454,-711.91116523,0.000178,2]
[399940850,1766909182355,-154.73,0.000132,2]
[399940851,1766909182379,-154.73,0.000149,2]
[399940852,1766909191845,200.0,0.00028025,120]
[399940853,1766909251091,-153.89,0.000132,2]
[399940854,1766909251120,-153.89,0.000147,2]
[399940855,1766909251144,-153.89,0.000163,2]
[399940856,1766909251167,-150.0,0.000172,2]
[399940857,1766909251191,-8.85743556,0.000178,2]
[399940858,1766909251320,200.0,0.00027356,120]
[399940859,1766909310195,-154.52,0.000132,2]
[399940860,1766909310217,-154.52,0.000147,2]
[399940861,1766909349081,-154.0,0.000132,2]
[399940862,1766909349113,-154.0,0.000149,2]
[399940863,1766909349136,-154.0,0.000166,2]
[399940864,1766909349156,-4279.23139921,0.000178,2]
[399940865,1766909407616,96.03919357,0.000132,2]
[399940866,1766909407641,58.36080643,0.000132,2]
[399940869,1766909431794,-385.96465091,0.00014454,2]
[399940870,1766909431805,-154.4,0.000146,2]
[399940871,1766909431816,-582.66177531,0.000146,2]
[399940872,1766909431827,-46.33822469,0.000146,2]
[399940873,1766909431837,-154.4,0.00016,2]
[399940874,1766909431848,-154.4,0.000174,2]
[399940875,1766909431857,-1041.66666667,0.00017918,2]
[399940876,1766909431866,-3238.60006572,0.00017985,2]
[399940877,1766909431876,-1200.0,0.00017991,2]
[399940878,1766909431887,-300.0,0.00017992,2]
[399940879,1766909431896,-300.0,0.00017992,2]
[399940880,1766909431905,-300.0,0.00017992,2]
[399940881,1766909431914,-300.0,0.00017992,2]
[399940882,1766909431924,-7265.04712752,0.00017993,2]
[399940883,1766909431933,-500.0,0.00017993,2]
[399940884,1766909431942,-500.0,0.00017993,2]
[399940885,1766909431951,-500.0,0.00017993,2]
[399940886,1766909431962,-500.0,0.00017993,2]
[399940887,1766909431972,-581.13312186,0.00017993,2]
[399940888,1766909431981,-500.0,0.00017993,2]
[399940889,1766909431990,-500.0,0.00017993,2]
[399940890,1766909431999,-390.12992219,0.00017993,2]
[399940891,1766909432008,-500.0,0.00017993,2]
[399940892,1766909432017,-500.0,0.00017993,2]
[399940893,1766909432026,-500.0,0.00017993,2]
[399940894,1766909432035,-500.0,0.00017993,2]
[399940895,1766909432044,-500.0,0.00017993,2]
[399940896,1766909432053,-500.0,0.00017993,2]
[399940897,1766909432062,-500.0,0.00017993,2]
[399940898,1766909432072,-444.93476987,0.00017993,2]
[399940899,1766909432081,-500.0,0.00017993,2]
[399940900,1766909432092,-522.49666237,0.00017993,2]
[399940901,1766909432101,-500.0,0.00017993,2]
[399940902,1766909432112,-500.0,0.00017993,2]
[399940903,1766909432122,-500.0,0.00017993,2]
[399940904,1766909432132,-21136.0,0.00018,2]
[399940905,1766909432141,-500.0,0.00018085,2]
[399940906,1766909432151,-564.6666688,0.00018157,2]
[399940907,1766909432161,-500.0,0.00018222,2]
[399940908,1766909432173,-500.0,0.00018359,2]
[399940909,1766909432182,-500.0,0.00018359,2]
[399940910,1766909432193,-300.0,0.00018359,2]
[399940911,1766909432202,-300.0,0.00018359,2]
[399940912,1766909432212,-300.0,0.00018359,2]
[399940913,1766909432221,-300.0,0.00018359,2]
[399940914,1766909432231,-300.0,0.00018359,2]
[399940915,1766909432241,-300.0,0.00018359,2]
[399940916,1766909432250,-300.0,0.00018359,2]
[399940917,1766909432259,-300.0,0.00018359,2]
[399940918,1766909432269,-300.0,0.00018359,2]
[399940919,1766909432279,-300.0,0.00018359,2]
[399940920,1766909432289,-300.0,0.00018359,2]
[399940921,1766909432298,-300.0,0.00018359,2]
[399940922,1766909432308,-300.0,0.00018359,2]
[399940923,1766909432317,-300.0,0.00018359,2]
[399940924,1766909432329,-300.0,0.00018359,2]
[399940925,1766909432339,-308.96918319,0.00018373,2]
[399940926,1766909432349,-556.14452975,0.00018373,2]
[399940927,1766909432359,-583.69733,0.00018496,2]
[399940928,1766909432368,-322.759,0.00018685,2]
[399940929,1766909432379,-1363.0,0.00018685,2]
[399940930,1766909432388,-600.0,0.00018725,2]
[399940931,1766909432398,-154.4,0.000188,2]
[399940932,1766909432407,-151.0,0.00018947,2]
[399940933,1766909432417,-4753.92189264,0.00018953,2]
[399940934,1766909432427,-988.70138622,0.00019022,2]
[399940935,1766909432436,-177.0,0.000192,2]
[399940936,1766909432445,-2158.39,0.000195,2]
[399940937,1766909432455,-310.84647562,0.000196,2]
[399940938,1766909432468,-612.13903081,0.000196,2]
[399940939,1766909432479,-159.29633985,0.000196,2]
[399940940,1766909432489,-234.13567566,0.00019631,2]
[399940941,1766909432501,-185.86432434,0.00019631,2]
[399940942,1766909432510,-420.0,0.00019631,2]
[399940943,1766909432520,-303.0,0.00019631,2]
[399940944,1766909432529,-324.0,0.00019631,2]
[399940945,1766909432539,-1235.76706538,0.00019666,3]
[399940946,1766909432548,-878.0,0.00019727,2]
[399940947,1766909432557,-2113.84019639,0.00019796,2]
[399940948,1766909432574,-2886.15980361,0.00019796,2]
[399940949,1766909432583,-306.72330954,0.00019836,2]
[399940950,1766909432593,-2883.89271208,0.0002,2]
[399940951,1766909432602,-370.84378873,0.0002,2]
[399940952,1766909432612,-448.55553362,0.0002,2]
[399940953,1766909432621,-23000.0,0.0002,2]
[399940954,1766909432630,-202.30928953,0.0002,2]
[399940955,1766909432639,-503.36733964,0.0002,2]
[399940956,1766909432649,-791.00782842,0.0002,2]
[399940977,1766909437746,-189.11294213,0.00017994,2]
[399940979,1766909437756,-446.14885477,0.00017994,2]
[399940981,1766909437765,-500.0,0.00017994,2]
[399940983,1766909437775,-500.0,0.00017994,2]
[399940985,1766909437784,-500.0,0.00017994,2]
[399940987,1766909437793,-500.0,0.00017994,2]
[399940989,1766909437802,-500.0,0.00017994,2]
[399940991,1766909437811,-500.0,0.00017994,2]
[399940993,1766909437820,-318.41035636,0.00017994,2]
[399940998,1766909437858,-181.58964364,0.00017994,2]
[399941000,1766909437868,-162.2561915,0.00017994,2]
[399941002,1766909437877,-500.0,0.00017994,2]
[399941004,1766909437887,-208.99217158,0.0002,2]
[399941006,1766909437896,-1000.0,0.0002,2]
[399941008,1766909437906,-599.3589821,0.00020055,2]
[399941010,1766909437915,-446.0614511,0.00020055,2]
[399941012,1766909437924,-599.3589821,0.00020055,2]
[399941014,1766909437933,-303.2277468,0.00020055,2]
[399941016,1766909437942,-599.3589821,0.00020055,2]
[399941018,1766909437951,-303.2277468,0.00020055,2]
[399941019,1766909437960,-599.3589821,0.00020055,2]
[399941022,1766909437969,-303.2277468,0.00020055,2]
[399941024,1766909437982,-599.3589821,0.00020055,2]
[399941026,1766909437991,-303.2277468,0.00020055,2]
[399941028,1766909438000,-599.3589821,0.00020055,2]
[399941030,1766909438010,-303.2277468,0.00020055,2]
[399941032,1766909438019,-303.2277468,0.00020055,2]
[399941034,1766909438029,-599.3589821,0.00020055,2]
[399941036,1766909438038,-303.2277468,0.00020055,2]
[399941038,1766909438047,-599.3589821,0.00020055,2]
[399941040,1766909438056,-303.2277468,0.00020055,2]
[399941042,1766909438066,-599.3589821,0.00020055,2]
[399941044,1766909438075,-599.3589821,0.00020055,2]
[399941046,1766909438085,-303.2277468,0.00020055,2]
[399941068,1766909438284,-599.3589821,0.00020055,2]
[399941071,1766909438305,-303.2277468,0.00020055,2]
[399941073,1766909438315,-599.3589821,0.00020055,2]
[399941075,1766909438326,-303.2277468,0.00020055,2]
[399941077,1766909438335,-303.2277468,0.00020055,2]
[399941079,1766909438345,-168.0,0.00020162,2]
[399941081,1766909438354,-3238.60006571,0.00020187,2]
[399941082,1766909438363,-738.003119,0.00020187,2]
[399941083,1766909438372,-154.4,0.000202,2]
[399941084,1766909438382,-1543.30107005,0.00020301,2]
[399941085,1766909438391,-168.0,0.00020317,2]
[399941086,1766909438400,-160.0,0.00020531,3]
[399941087,1766909438409,-168.0,0.00020543,2]
[399941088,1766909438418,-200.0,0.00020548,5]
[399941089,1766909438428,-720.0,0.00020598,2]
[399941090,1766909438437,-5000.0,0.00020724,2]
[399941091,1766909438446,-3000.0,0.00021,2]
[399941092,1766909438455,-447.33185876,0.00021,2]
[399941093,1766909438467,-1711.05814124,0.00021,2]
[399941094,1766909438476,-3000.0,0.0002101,2]
[399941095,1766909438485,-2547.71758998,0.0002102,2]
[399941096,1766909438497,-452.28241002,0.0002102,2]
[399941097,1766909438506,-3000.0,0.0002103,2]
[399941098,1766909438515,-158.07523537,0.0002104,2]
[399941099,1766909438526,-498.8032675,0.0002104,2]
[399941100,1766909438537,-310.26026925,0.0002104,2]
[399941101,1766909438552,-2032.86122788,0.0002104,2]
[399941102,1766909438561,-1371.93258457,0.0002105,2]
[399941103,1766909438571,-1210.44401502,0.0002105,2]
[399941262,1766909440203,-106.89042079,0.0002105,2]
[399941263,1766909440214,-310.73297962,0.0002105,2]
[399941265,1766909440224,-48.76802042,0.0002106,2]
[399941267,1766909440235,-268.91371533,0.0002106,2]
[399941268,1766909440525,-10.58668641,0.0002106,2]
[399941269,1766909440536,-909.3791662,0.0002106,2]
[399941271,1766909444599,-1006.36689294,0.0002106,2]
[399941272,1766909444610,-755.9855187,0.0002106,2]
[399941273,1766909444620,-3000.0,0.0002107,2]
[399941274,1766909444631,-3000.0,0.0002108,2]
[399941275,1766909444641,-3000.0,0.0002109,2]
[399941276,1766909444651,-156.0,0.000211,2]
[399941277,1766909444660,-151.93,0.000211,2]
[399941278,1766909444669,-3000.0,0.000211,2]
[399941279,1766909444678,-439.71664944,0.0002111,2]
[399941280,1766909444690,-1042.13964905,0.0002111,2]
[399941327,1766909446072,-850.02,0.0002111,2]
[399941328,1766909446084,-668.12370151,0.0002111,2]
[399941329,1766909446094,-932.05793732,0.0002112,2]
[399941330,1766909446105,-771.4533225,0.0002112,2]
[399941331,1766909621304,749.48,0.00030137,120]
[399941332,1766909635846,5000.0,0.00014,3]
[399941333,1766909694874,-500.0,0.00013273,2]
[399941334,1766909694896,-252.40019305,0.00013273,2]
[399941335,1766909694920,-500.0,0.00013273,2]
[399941336,1766909694944,-500.15596163,0.00013273,2]
[399941337,1766909694966,-247.44384532,0.00013273,2]
[399941338,1766909698061,-261.15307382,0.00013273,2]
[399941339,1766909698081,-615.08944183,0.00013273,2]
[399941340,1766909698100,-432.8319662,0.00013273,2]
[399941341,1766909698119,-500.0,0.00013273,2]
[399941342,1766909698139,-190.92551815,0.00013273,2]
[399941343,1766909700117,-14.05975862,0.00013273,2]
[399941344,1766909700138,-269.99454483,0.00013273,2]
[399941345,1766909700160,-166.19617529,0.00013821,2]
[399941346,1766909844216,200.0,0.0003,120]
[399941347,1766909873215,630.9,0.0003,120]
[399941359,1766909911604,150.0,6.09e-05,2]
[399941360,1766909912075,150.0,6.38e-05,2]
[399941361,1766909912550,150.0,6.669e-05,2]
[399941362,1766909913051,150.0,6.959e-05,2]
[399941363,1766909913546,150.0,7.249e-05,2]
[399941364,1766909914007,150.0,7.539e-05,2]
[399941365,1766909954318,1797.59819312,0.00013172,2]
[399941366,1766909963499,5000.0,0.00013172,2]
[399941367,1766909987365,2829.16066296,0.00013172,2]
[399941368,1766910123853,-329.75026805,0.00013273,2]
[399941369,1766910128537,413.132,0.00030137,120]
[399941370,1766910353101,-150.0,0.00017727,2]
[399941371,1766910353124,-20.77911653,0.00017728,2]
[399941372,1766910509891,7170.84933704,0.00012,2]
[399941373,1766910514928,-344.03746616,0.00012,2]
[399941375,1766910521788,-891.90183628,0.0001188,2]
[399941376,1766910521927,-302.26783046,0.00012,2]
[399941377,1766910522919,9997.999999,0.0003,120]
[399941378,1766910524091,-347.23699151,0.00012,2]
[399941379,1766910527366,-375.84034633,0.00012,2]
[399941380,1766910527947,-5070.97782177,0.00012,2]
[399941381,1766910528620,-2000.0,0.00012,2]
[399941382,1766910531004,-65.99486951,0.00012,2]
[399941383,1766910531029,-9868.02026098,0.00012,2]
[399941384,1766910533943,-664.202807,0.00013699,2]
[399941385,1766910556996,-302.26783046,0.00013273,2]
[399941386,1766910557017,-150.05774631,0.00013273,2]
[399941387,1766910570260,-154.17130961,0.00013273,2]
[399941428,1766910631871,-2000.0,0.00015379,2]
[399941430,1766910631880,-5000.0,0.00015534,2]
[399941432,1766910631889,-150.0,0.00015691,2]
[399941434,1766910631898,-714.62827902,0.00017618,2]
[399941436,1766910631908,-177.0,0.00017691,2]
[399941438,1766910631918,-1363.0,0.00019477,2]
[399941440,1766910631927,-204.0,0.00019691,2]
[399941442,1766910631936,-199.589443,0.00019791,2]
[399941444,1766910631946,-857.84779666,0.0002,2]
[399941446,1766910631955,-664.202807,0.00020187,2]
[399941448,1766910631965,-156.0,0.00020697,2]
[399941450,1766910631975,-300.0,0.00020697,2]
[399941452,1766910631986,-721.52123085,0.00020698,2]
[399941454,1766910631995,-2273.50198865,0.00020831,2]
[399941456,1766910632004,-9912.61345879,0.0002093,2]
[399941458,1766910632014,-2494.17221518,0.00021,2]
[399941460,1766910632024,-1386.36,0.0002102,10]
[399941462,1766910632033,-1155.3,0.0002102,10]
[399941464,1766910632042,-962.75,0.0002102,10]
[399941466,1766910632051,-224.72185137,0.00021028,2]
[399941468,1766910632060,-487.79221358,0.00021028,2]
[399941470,1766910632069,-216.10386332,0.00021028,2]
[399941472,1766910632077,-238.80107043,0.00021029,2]
[399941474,1766910632086,-222.361,0.00021029,2]
[399941476,1766910632095,-153746.0763725,0.0002103,2]
[399941478,1766910632108,-412.71247724,0.0002103,2]
[399941480,1766910632120,-20486.03425003,0.0002103,2]
[399941483,1766910632130,-6197.993382,0.0002103,2]
[399941544,1766910637939,-4331.8598224,0.0002082,2]
[399941546,1766910637949,-1202.27054525,0.0002103,2]
[399941548,1766910637961,-6586.17155548,0.0002103,2]
[399941550,1766910637976,-2530.59081494,0.0002103,2]
[399941552,1766910637987,-4246.77402943,0.0002103,2]
[399941555,1766910638000,-4606.8598424,0.0002103,2]
[399941565,1766910638095,-2322.27181308,0.0002103,2]
[399941568,1766910638107,-8715.83891627,0.0002103,2]
[399941772,1766910640314,-72.030245,0.00020999,2]
[399941774,1766910640325,-427.969755,0.00020999,2]
[399941776,1766910640334,-190.14172314,0.00020999,2]
[399941778,1766910640343,-312.30419834,0.00020999,2]
[399941780,1766910640352,-500.0,0.00020999,2]
[399941782,1766910640361,-500.0,0.00020999,2]
[399941784,1766910640370,-500.0,0.00020999,2]
[399941786,1766910640379,-204.84227236,0.00020999,2]
[399941860,1766910644802,-295.15772764,0.00020999,2]
[399941861,1766910644812,-210.91969043,0.00020999,2]
[399941862,1766910644952,-0.77672696,0.00020999,2]
[399941867,1766910740745,1000.0,0.0003,120]
[399941871,1766911017292,-5000.0,0.00019281,2]
[399941872,1766911017332,-0.01,0.00019476,7]
[399941873,1766911020154,-499.99,0.00019476,7]
[399941874,1766911020183,-150.0,0.00019692,2]
[399941875,1766911020213,-967.756,0.00019907,2]
[399941876,1766911020241,-241.15107261,0.0002061,2]
[399941877,1766911020270,-802.29,0.0002092,10]
[399941878,1766911020298,-668.58,0.0002092,10]
[399941879,1766911020328,-300.0,0.00020929,2]
[399941880,1766911020359,-500.0,0.00020929,2]
[399941881,1766911020387,-500.0,0.00020929,2]
[399941882,1766911020415,-218.61293884,0.00020929,2]
[399941883,1766911020585,-303.2499771,0.00020929,2]
[399941885,1766911401258,947.07767836,0.00013172,2]
[399941887,1766911486727,3611.4,0.00030137,120]
[399941888,1766911557142,-274.29493201,0.00013273,2]
[399941889,1766911557162,-500.4803021,0.00013273,2]
[399941890,1766911557184,-607.59034005,0.00013273,2]
[399941891,1766911557205,-387.70688566,0.00013273,2]
[399941892,1766911557228,-460.0,0.00015099,2]
[399941893,1766911557249,-1000.0,0.000151,2]
[399941894,1766911557270,-150.0,0.00016374,2]
[399941895,1766911557295,-177.0,0.00018374,2]
[399941896,1766911557315,-449.52139677,0.00019476,7]
[399941915,1766911637077,-50.47860323,0.00019476,7]
[399941916,1766911637099,-124.35656273,0.00020374,2]
[399941917,1766911757745,500.0,0.00030134,120]
[399941918,1766911757988,500.0,0.00030134,120]
[399941919,1766911758220,500.0,0.00030134,120]
[399941920,1766911758464,500.0,0.00030134,120]
[399941921,1766911758690,500.0,0.00030134,120]
[399941922,1766911758927,500.0,0.00030134,120]
[399941923,1766911759158,500.0,0.00030134,120]
[399941924,1766911759433,500.0,0.00030134,120]
[399941925,1766911759687,500.0,0.00030134,120]
[399941926,1766911759950,500.0,0.00030134,120]
[399941927,1766911760160,500.0,0.00030134,120]
[399941928,1766911760412,500.0,0.00030134,120]
[399941929,1766911760656,500.0,0.00030134,120]
[399941930,1766911760882,500.0,0.00030134,120]
[399941931,1766911761138,500.0,0.00030134,120]
[399941932,1766911761371,500.0,0.00030134,120]
[399941933,1766911761593,500.0,0.00030134,120]
[399941934,1766911761834,500.0,0.00030134,120]
[399941935,1766911762055,500.0,0.00030134,120]
[399941936,1766911762297,602.97628625,0.00030134,120]
[399942272,1766911840598,-500.0,0.00019476,7]
[399942273,1766911840608,-150.0,0.00020424,2]
[399942274,1766911840616,-608.99824618,0.00020431,2]
[399942327,1766911845296,-336.68667919,0.00020431,2]
[399942335,1766911846240,-95.9817413,0.00020431,2]
[399942337,1766911846249,-2329.60096528,0.00020873,2]
[399942339,1766911846259,-341.29,0.0002092,10]
[399942340,1766911846268,-66.82740303,0.0002092,10]
[399942341,1766911846279,-433.44259697,0.0002092,10]
[399942342,1766911846291,-300.0,0.00020928,2]
[399942343,1766911846302,-315.90009217,0.00020928,2]
[399942344,1766911846312,-400.0,0.00020928,2]
[399942345,1766911846322,-196.7500229,0.00020929,2]
[399942346,1766911846333,-500.0,0.00020929,2]
[399942347,1766911846343,-340.70728776,0.00020929,2]
[399942348,1766911906755,176.0,0.00030137,120]
[399942349,1766911931218,-500.0,0.00019476,7]
[399942350,1766911931245,-386.442885,0.0002,10]
[399942351,1766911931326,-7280.04655164,0.00020227,2]
[399942352,1766911990819,301.96779676,0.00030134,120]
[399942355,1766912642515,167.05,0.000121,2]
[399942356,1766912705724,150.04,0.000121,2]
[399942357,1766912706067,150.04,0.000128,2]
[399942358,1766912740593,150.0,6.761e-05,2]
[399942359,1766912741066,150.0,7.376e-05,2]
[399942360,1766912741651,150.0,7.99e-05,2]
[399942361,1766912742087,150.0,8.605e-05,2]
[399942362,1766912742541,150.0,9.22e-05,2]
[399942363,1766912742970,150.0,9.834e-05,2]
[399942364,1766912743451,150.0,0.00010449,2]
[399942365,1766912771580,150.35,0.000121,2]
[399942366,1766912782921,5000.0,0.00013172,2]
[399942367,1766912806156,3799.66,0.00013172,2]
[399942368,1766912806183,1200.34,0.00013172,2]
[399942369,1766912808268,150.0,6.629e-05,2]
[399942370,1766912808598,150.0,7.232e-05,2]
[399942371,1766912809060,215.88,7.834e-05,2]
[399942372,1766912809486,287.85,8.437e-05,2]
[399942373,1766912809968,359.81,9.039e-05,2]
[399942374,1766912810397,431.77,9.642e-05,2]
[399942375,1766912810808,503.73,0.00010245,2]
[399942376,1766912811225,575.69,0.00010847,2]
[399942377,1766912811632,647.65,0.0001145,2]
[399942378,1766912812067,719.62,0.00012053,2]
[399942379,1766912822850,3368.42193698,0.00013172,2]
[399942380,1766912828113,150.13,0.000121,2]
[399942381,1766912828441,150.13,0.000128,2]
[399942382,1766912831007,1088.98806302,0.00013172,2]
[399942383,1766912831028,3911.01193698,0.00013172,2]
[399942384,1766912849362,371.48,0.0001,2]
[399942385,1766912851763,371.48,0.000102,2]
[399942386,1766912854777,371.48,0.000104,2]
[399942387,1766912855790,4974.55806302,0.00013172,2]
[399942388,1766912855812,25.44193698,0.00013172,2]
[399942389,1766912857223,371.48,0.000106,2]
[399942390,1766912859599,371.48,0.000108,2]
[399942391,1766912861976,371.48,0.00011,2]
[399942392,1766912879324,5000.0,0.00013172,2]
[399942393,1766912884284,161.05,6.419e-05,2]
[399942394,1766912884682,322.09,7.002e-05,2]
[399942395,1766912885103,483.14,7.586e-05,2]
[399942396,1766912885516,644.18,8.169e-05,2]
[399942397,1766912885914,805.23,8.753e-05,2]
[399942398,1766912886378,966.28,9.336e-05,2]
[399942399,1766912886849,478.15806302,9.92e-05,2]
[399942400,1766912886875,649.16193698,9.92e-05,2]
[399942401,1766912887262,1288.37,0.00010503,2]
[399942402,1766912887663,1449.42,0.00011087,2]
[399942403,1766912888071,1610.46,0.0001167,2]
[399942404,1766912892874,150.32,0.000121,2]
[399942405,1766912903259,4852.27806302,0.00013172,2]
[399942406,1766912903283,147.72193698,0.00013172,2]
[399942408,1766912927228,5000.0,0.00013172,2]
[399942409,1766912949035,150.27,0.000121,2]
[399942410,1766912949330,150.27,0.000128,2]
[399942411,1766912950807,4551.74806302,0.00013172,2]
[399942412,1766912950830,448.25193698,0.00013172,2]
[399942413,1766912960873,150.0,6.431e-05,2]
[399942414,1766912961338,249.77,7.016e-05,2]
[399942415,1766912961789,374.66,7.6e-05,2]
[399942416,1766912962177,499.54,8.185e-05,2]
[399942417,1766912962582,624.43,8.769e-05,2]
[399942418,1766912963024,749.31,9.354e-05,2]
[399942419,1766912963110,-300.0,0.0001327,2]
[399942420,1766912963133,-500.0,0.00013271,2]
[399942421,1766912963154,-550.0,0.00013271,2]
[399942422,1766912963175,-500.0,0.00013271,2]
[399942423,1766912963197,-500.0,0.00013271,2]
[399942424,1766912963218,-153.02905718,0.00013271,2]
[399942425,1766912963240,-500.0,0.00013271,2]
[399942426,1766912963261,-500.0,0.00013271,2]
[399942427,1766912963283,-500.0,0.00013271,2]
[399942428,1766912963305,-500.0,0.00013271,2]
[399942429,1766912963327,-500.0,0.00013271,2]
[399942430,1766912963348,-500.0,0.00013271,2]
[399942431,1766912963369,-500.0,0.00013271,2]
[399942432,1766912963390,-500.0,0.00013271,2]
[399942433,1766912963410,-180.59731438,0.00013271,2]
[399942434,1766912963431,-500.0,0.00013271,2]
[399942435,1766912963452,-500.0,0.00013271,2]
[399942436,1766912963472,-500.0,0.00013271,2]
[399942437,1766912963492,-500.0,0.00013271,2]
[399942438,1766912963513,-500.0,0.00013271,2]
[399942439,1766912963533,-500.0,0.00013271,2]
[399942440,1766912963555,-500.0,0.00013271,2]
[399942441,1766912963575,-500.0,0.00013271,2]
[399942442,1766912963595,-500.0,0.00013271,2]
[399942443,1766912963615,-500.0,0.00013271,2]
[399942444,1766912963636,-593.16305441,0.00013271,2]
[399942445,1766912963656,-500.0,0.00013271,2]
[399942446,1766912963677,-102.69047436,0.00013271,2]
[399942447,1766912963712,-397.30952564,0.00013271,2]
[399942448,1766912963733,-500.0,0.00013271,2]
[399942449,1766912963755,-500.0,0.00013271,2]
[399942450,1766912963776,-500.0,0.00013271,2]
[399942451,1766912963797,-500.0,0.00013271,2]
[399942452,1766912963818,-500.0,0.00013271,2]